fUST/lending_fUST_20250909
["ID","MTS","AMOUNT","RATE_DAILY","PERIOD"]
[384432395,1757410241066,-1250.23,0.00013698,2]
[384432396,1757410241075,-624.23,0.00013698,2]
[384432397,1757410241084,-480.0,0.00013698,2]
[384432398,1757410241094,-753.21,0.00013698,2]
[384432399,1757410241103,-480.0,0.00013698,2]
[384432400,1757410241113,-480.0,0.00013698,2]
[384432401,1757410241122,-1550.94,0.00013698,2]
[384432402,1757410241131,-519.11740479,0.00013698,2]
[384432403,1757410241141,-480.0,0.00013698,2]
[384432404,1757410241150,-480.0,0.00013698,2]
[384432405,1757410241159,-480.0,0.00013698,2]
[384432406,1757410241168,-772.08,0.00013698,2]
[384432407,1757410241177,-480.0,0.00013698,2]
[384432408,1757410241186,-480.0,0.00013698,2]
[384432409,1757410241195,-788.95,0.00013698,2]
[384432410,1757410241204,-480.0,0.00013698,2]
[384432411,1757410241213,-480.0,0.00013698,2]
[384432412,1757410241223,-489.32418645,0.00013698,2]
[384432413,1757410241232,-480.0,0.00013698,2]
[384432414,1757410241241,-186.0,0.00013698,2]
[384432415,1757410241251,-157.0,0.00013698,2]
[384432416,1757410241260,-500.0,0.00013698,2]
[384432417,1757410241270,-480.0,0.00013698,2]
[384432418,1757410241279,-157.0,0.00013698,2]
[384432419,1757410241288,-480.0,0.00013698,2]
[384432420,1757410241297,-480.0,0.00013698,2]
[384432421,1757410241307,-188.88291474,0.00013698,2]
[384432422,1757410241316,-885.97,0.00013698,2]
[384432423,1757410241326,-482.6159508,0.00013698,2]
[384432424,1757410241335,-480.0,0.00013698,2]
[384432425,1757410241348,-157.0,0.00013698,2]
[384432426,1757410241357,-480.0,0.00013698,2]
[384432427,1757410241366,-2535.51,0.00013698,2]
[384432428,1757410241375,-157.0,0.00013698,2]
[384432429,1757410241385,-360.42200151,0.00013698,2]
[384432430,1757410241394,-480.0,0.00013698,2]
[384432431,1757410241403,-482.67337649,0.00013698,2]
[384432432,1757410241412,-480.0,0.00013698,2]
[384432433,1757410241423,-616.0,0.00013698,2]
[384432434,1757410241432,-1003.34,0.00013698,2]
[384432435,1757410241441,-480.0,0.00013698,2]
[384432436,1757410241450,-186.0,0.00013698,2]
[384432437,1757410241459,-480.0,0.00013698,2]
[384432438,1757410241470,-485.82683563,0.00013698,2]
[384432439,1757410241479,-480.0,0.00013698,2]
[384432440,1757410241488,-480.0,0.00013698,2]
[384432441,1757410241497,-428.11204719,0.00013698,2]
[384432442,1757410241507,-491.4322304,0.00013698,2]
[384432443,1757410241516,-480.0,0.00013698,2]
[384432444,1757410241525,-480.0,0.00013698,2]
[384432445,1757410241534,-480.0,0.00013698,2]
[384432446,1757410241544,-489.26,0.00013698,2]
[384432447,1757410241553,-122.98094224,0.00013698,2]
[384432809,1757410246926,-1417.55191494,0.00013599,2]
[384433481,1757410652586,320.68714297,0.00013099,2]
[384433482,1757410676618,320.68714297,0.00013099,2]
[384433483,1757410700498,320.68714297,0.00013099,2]
[384433484,1757410723674,273.77011915,0.00013099,2]
[384433491,1757410867283,1658.0,0.00027,120]
[384433492,1757410878554,-320.68714297,0.00013231,2]
[384433498,1757410969103,55445.67694164,0.00028787,120]
[384433508,1757411421850,200.0,0.00025,30]
[384433509,1757411422120,200.0,0.00023562,30]
[384433510,1757411423576,200.0,0.00025,30]
[384433511,1757411423843,200.0,0.00023562,30]
[384433556,1757411431917,-1200.0,0.00013593,2]
[384433558,1757411431927,-34946.19705186,0.00013594,2]
[384433560,1757411431939,-91260.78397911,0.00013594,2]
[384433562,1757411431948,-1619.432085,0.00013598,2]
[384433564,1757411431957,-1312.64265663,0.00013598,2]
[384433566,1757411431966,-242.45495503,0.00013633,2]
[384433568,1757411431975,-300.0,0.00013635,2]
[384433570,1757411431985,-300.0,0.00013635,2]
[384433572,1757411431995,-300.0,0.00013635,2]
[384433574,1757411432004,-300.0,0.00013635,2]
[384433576,1757411432013,-300.0,0.00013635,2]
[384433578,1757411432023,-50000.0,0.00013636,2]
[384433580,1757411432033,-1200.0,0.00013636,2]
[384433582,1757411432042,-158.229,0.00013638,2]
[384433584,1757411432051,-217.65034598,0.00013638,2]
[384433586,1757411432061,-530.79566296,0.00013638,2]
[384433588,1757411432070,-160.0,0.00013638,2]
[384433590,1757411432080,-233.05759179,0.00013638,2]
[384433592,1757411432090,-417.15472785,0.00013638,2]
[384433594,1757411432099,-846.80158213,0.00013638,2]
[384433596,1757411432108,-203.28455737,0.00013638,2]
[384433598,1757411432117,-160.0,0.00013638,2]
[384433600,1757411432126,-976.0,0.00013641,2]
[384433602,1757411432136,-2154.0,0.00013641,2]
[384433604,1757411432146,-634.0,0.00013641,2]
[384433606,1757411432155,-1312.6426566,0.00013667,2]
[384433608,1757411432164,-3074.2792747,0.00013687,2]
[384433610,1757411432174,-469.86985753,0.00013693,2]
[384433612,1757411432184,-500.0,0.00013693,2]
[384433614,1757411432193,-500.0,0.00013693,2]
[384433616,1757411432203,-205.00764747,0.00013693,2]
[384433618,1757411432212,-500.0,0.00013693,2]
[384433620,1757411432221,-500.0,0.00013693,2]
[384433622,1757411432231,-500.0,0.00013693,2]
[384433624,1757411432240,-216.21751662,0.00013693,2]
[384433626,1757411432249,-500.0,0.00013693,2]
[384433628,1757411432258,-230.35563118,0.00013693,2]
[384433630,1757411432267,-500.0,0.00013693,2]
[384433632,1757411432276,-500.0,0.00013693,2]
[384433634,1757411432286,-500.0,0.00013693,2]
[384433636,1757411432295,-273.40204931,0.00013693,2]
[384433638,1757411432304,-500.0,0.00013693,2]
[384433640,1757411432313,-500.0,0.00013693,2]
[384433642,1757411432323,-500.0,0.00013693,2]
[384433643,1757411432332,-500.0,0.00013693,2]
[384433646,1757411432342,-500.0,0.00013693,2]
[384433648,1757411432351,-500.0,0.00013693,2]
[384433649,1757411432361,-500.0,0.00013693,2]
[384433650,1757411432370,-501.46252433,0.00013693,2]
[384433652,1757411432379,-500.0,0.00013693,2]
[384433654,1757411432388,-176.92657718,0.00013693,2]
[384433656,1757411432398,-500.0,0.00013693,2]
[384433658,1757411432407,-500.0,0.00013693,2]
[384433660,1757411432416,-236.57800582,0.00013693,2]
[384433662,1757411432426,-500.0,0.00013693,2]
[384433664,1757411432435,-500.0,0.00013693,2]
[384433666,1757411432445,-500.0,0.00013693,2]
[384433668,1757411432454,-500.0,0.00013693,2]
[384433669,1757411432464,-398.37495979,0.00013693,2]
[384433671,1757411432473,-500.0,0.00013693,2]
[384433673,1757411432482,-500.0,0.00013693,2]
[384433675,1757411432491,-500.0,0.00013693,2]
[384433677,1757411432500,-500.0,0.00013693,2]
[384433679,1757411432509,-500.0,0.00013693,2]
[384433681,1757411432519,-500.0,0.00013693,2]
[384433683,1757411432528,-500.0,0.00013693,2]
[384433685,1757411432537,-500.0,0.00013693,2]
[384433687,1757411432547,-500.0,0.00013693,2]
[384433689,1757411432557,-500.0,0.00013693,2]
[384433691,1757411432566,-500.0,0.00013693,2]
[384433693,1757411432576,-500.0,0.00013693,2]
[384433695,1757411432585,-500.0,0.00013693,2]
[384433697,1757411432595,-500.0,0.00013693,2]
[384433699,1757411432605,-500.0,0.00013693,2]
[384433701,1757411432616,-500.0,0.00013693,2]
[384433703,1757411432625,-500.0,0.00013693,2]
[384433705,1757411432635,-500.0,0.00013693,2]
[384433707,1757411432645,-500.0,0.00013693,2]
[384433709,1757411432655,-500.0,0.00013693,2]
[384433712,1757411432665,-500.0,0.00013693,2]
[384433714,1757411432675,-500.0,0.00013693,2]
[384433716,1757411432684,-500.0,0.00013693,2]
[384433717,1757411432693,-500.0,0.00013693,2]
[384433719,1757411432702,-500.0,0.00013693,2]
[384433721,1757411432711,-500.0,0.00013693,2]
[384433723,1757411432721,-500.0,0.00013693,2]
[384433725,1757411432730,-585.03571979,0.00013693,2]
[384433727,1757411432739,-500.0,0.00013693,2]
[384433729,1757411432748,-500.0,0.00013693,2]
[384433731,1757411432757,-500.0,0.00013693,2]
[384433733,1757411432766,-500.0,0.00013693,2]
[384433735,1757411432776,-500.0,0.00013693,2]
[384433737,1757411432786,-500.0,0.00013693,2]
[384433739,1757411432795,-500.0,0.00013693,2]
[384433741,1757411432804,-500.0,0.00013693,2]
[384433743,1757411432813,-500.0,0.00013693,2]
[384433745,1757411432824,-500.0,0.00013693,2]
[384433747,1757411432834,-500.0,0.00013693,2]
[384433749,1757411432844,-500.0,0.00013693,2]
[384433751,1757411432854,-500.0,0.00013693,2]
[384433753,1757411432863,-203.58915251,0.00013697,2]
[384433755,1757411432872,-480.0,0.00013698,2]
[384433758,1757411432884,-480.0,0.00013698,2]
[384433759,1757411432894,-480.0,0.00013698,2]
[384433762,1757411432904,-490.92669068,0.00013698,2]
[384433764,1757411432913,-480.0,0.00013698,2]
[384433766,1757411432923,-480.0,0.00013698,2]
[384433768,1757411432932,-480.0,0.00013698,2]
[384433770,1757411432941,-317.8982504,0.00013698,2]
[384433772,1757411432953,-480.0,0.00013698,2]
[384433773,1757411432964,-605.40758822,0.00013698,2]
[384433775,1757411432973,-480.0,0.00013698,2]
[384433777,1757411432983,-480.0,0.00013698,2]
[384433779,1757411432995,-480.0,0.00013698,2]
[384433781,1757411433005,-480.0,0.00013698,2]
[384433783,1757411433015,-480.0,0.00013698,2]
[384433785,1757411433025,-593.78,0.00013698,2]
[384433788,1757411433038,-480.0,0.00013698,2]
[384433790,1757411433048,-480.0,0.00013698,2]
[384433791,1757411433058,-480.0,0.00013698,2]
[384433793,1757411433069,-511.49446632,0.00013698,2]
[384433796,1757411433079,-480.0,0.00013698,2]
[384433797,1757411433089,-341.44442644,0.00013698,2]
[384433800,1757411433099,-480.0,0.00013698,2]
[384433802,1757411433109,-480.0,0.00013698,2]
[384433822,1757411433293,-480.0,0.00013698,2]
[384433824,1757411433304,-487.26565924,0.00013698,2]
[384433826,1757411433314,-480.0,0.00013698,2]
[384433828,1757411433324,-482.43349415,0.00013698,2]
[384433830,1757411433334,-553.62082227,0.00013698,2]
[384433832,1757411433344,-480.0,0.00013698,2]
[384433834,1757411433353,-480.0,0.00013698,2]
[384433836,1757411433363,-489.25338197,0.00013698,2]
[384433838,1757411433372,-480.0,0.00013698,2]
[384433840,1757411433382,-480.0,0.00013698,2]
[384433842,1757411433392,-488.5559979,0.00013698,2]
[384433844,1757411433402,-500.0,0.00013698,2]
[384433846,1757411433411,-480.0,0.00013698,2]
[384433848,1757411433421,-962.53,0.00013698,2]
[384433850,1757411433431,-480.0,0.00013698,2]
[384433852,1757411433441,-531.04274788,0.00013698,2]
[384433854,1757411433450,-480.0,0.00013698,2]
[384433856,1757411433460,-483.11884981,0.00013698,2]
[384433858,1757411433470,-480.0,0.00013698,2]
[384433860,1757411433480,-201.3412741,0.00013698,2]
[384433862,1757411433489,-480.0,0.00013698,2]
[384433864,1757411433499,-480.0,0.00013698,2]
[384433866,1757411433509,-480.0,0.00013698,2]
[384433868,1757411433518,-480.0,0.00013698,2]
[384433869,1757411433528,-480.0,0.00013698,2]
[384433871,1757411433538,-480.0,0.00013698,2]
[384433873,1757411433548,-480.0,0.00013698,2]
[384433875,1757411433558,-480.0,0.00013698,2]
[384433877,1757411433568,-480.0,0.00013698,2]
[384433880,1757411433578,-480.0,0.00013698,2]
[384433881,1757411433587,-658.29,0.00013698,2]
[384433883,1757411433597,-480.0,0.00013698,2]
[384433885,1757411433606,-480.0,0.00013698,2]
[384433887,1757411433616,-168.74154865,0.00013698,2]
[384433889,1757411433625,-480.0,0.00013698,2]
[384433891,1757411433634,-697.39,0.00013698,2]
[384433893,1757411433643,-480.0,0.00013698,2]
[384433895,1757411433653,-480.0,0.00013698,2]
[384433897,1757411433662,-566.69,0.00013698,2]
[384433899,1757411433672,-489.95616679,0.00013698,2]
[384433901,1757411433681,-480.0,0.00013698,2]
[384433903,1757411433691,-480.0,0.00013698,2]
[384433905,1757411433700,-375.44308829,0.00013698,2]
[384433907,1757411433710,-480.0,0.00013698,2]
[384433909,1757411433720,-480.0,0.00013698,2]
[384433911,1757411433729,-480.0,0.00013698,2]
[384433913,1757411433739,-480.0,0.00013698,2]
[384433915,1757411433747,-480.0,0.00013698,2]
[384433917,1757411433756,-480.0,0.00013698,2]
[384433918,1757411433766,-480.0,0.00013698,2]
[384433920,1757411433776,-654.89,0.00013698,2]
[384433922,1757411433785,-480.0,0.00013698,2]
[384433924,1757411433795,-480.0,0.00013698,2]
[384433926,1757411433805,-480.0,0.00013698,2]
[384433928,1757411433815,-480.0,0.00013698,2]
[384433930,1757411433825,-480.0,0.00013698,2]
[384433932,1757411433834,-480.0,0.00013698,2]
[384433934,1757411433844,-480.0,0.00013698,2]
[384433936,1757411433853,-480.0,0.00013698,2]
[384433938,1757411433863,-480.0,0.00013698,2]
[384433940,1757411433873,-480.0,0.00013698,2]
[384433941,1757411433882,-480.0,0.00013698,2]
[384433942,1757411433892,-480.0,0.00013698,2]
[384433943,1757411433903,-573.15,0.00013698,2]
[384433944,1757411433913,-480.0,0.00013698,2]
[384433945,1757411433922,-480.0,0.00013698,2]
[384433946,1757411433932,-480.0,0.00013698,2]
[384433947,1757411433942,-480.0,0.00013698,2]
[384433948,1757411433952,-565.69,0.00013698,2]
[384433949,1757411433964,-266.79076574,0.00013698,2]
[384433950,1757411433974,-480.0,0.00013698,2]
[384433951,1757411433984,-480.0,0.00013698,2]
[384433952,1757411433995,-549.46,0.00013698,2]
[384433953,1757411434005,-480.0,0.00013698,2]
[384433954,1757411434014,-488.28847588,0.00013698,2]
[384433955,1757411434024,-480.0,0.00013698,2]
[384433956,1757411434037,-480.0,0.00013698,2]
[384433957,1757411434047,-480.0,0.00013698,2]
[384433958,1757411434057,-480.0,0.00013698,2]
[384433959,1757411434069,-480.0,0.00013698,2]
[384433960,1757411434079,-363.97690342,0.00013698,2]
[384433961,1757411434089,-524.93989348,0.00013698,2]
[384433962,1757411434099,-480.0,0.00013698,2]
[384433963,1757411434108,-480.0,0.00013698,2]
[384433964,1757411434118,-488.34625054,0.00013698,2]
[384433965,1757411434141,-514.95,0.00013698,2]
[384433966,1757411434151,-151.0,0.00013698,2]
[384433967,1757411434161,-151.0,0.00013698,2]
[384433968,1757411434171,-153.261702,0.00013698,2]
[384433969,1757411434181,-480.0,0.00013698,2]
[384433970,1757411434191,-480.0,0.00013698,2]
[384433971,1757411434203,-426.92799805,0.00013698,2]
[384433972,1757411434213,-480.0,0.00013698,2]
[384433973,1757411434222,-480.0,0.00013698,2]
[384433974,1757411434233,-480.0,0.00013698,2]
[384433975,1757411434243,-645.75,0.00013698,2]
[384433976,1757411434253,-480.0,0.00013698,2]
[384433977,1757411434264,-489.26997838,0.00013698,2]
[384433978,1757411434275,-480.0,0.00013698,2]
[384433979,1757411434285,-480.0,0.00013698,2]
[384433980,1757411434295,-480.0,0.00013698,2]
[384433981,1757411434305,-482.66488377,0.00013698,2]
[384433982,1757411434314,-480.0,0.00013698,2]
[384433983,1757411434325,-480.0,0.00013698,2]
[384433984,1757411434335,-480.0,0.00013698,2]
[384433985,1757411434345,-480.0,0.00013698,2]
[384433986,1757411434355,-480.0,0.00013698,2]
[384433987,1757411434365,-937.44,0.00013698,2]
[384433988,1757411434375,-480.0,0.00013698,2]
[384433989,1757411434385,-485.35226245,0.00013698,2]
[384433990,1757411434394,-480.0,0.00013698,2]
[384433991,1757411434404,-480.0,0.00013698,2]
[384433992,1757411434414,-480.0,0.00013698,2]
[384433993,1757411434424,-480.0,0.00013698,2]
[384433994,1757411434433,-480.0,0.00013698,2]
[384433995,1757411434443,-480.0,0.00013698,2]
[384433996,1757411434452,-481.91891233,0.00013698,2]
[384433997,1757411434461,-480.0,0.00013698,2]
[384433998,1757411434471,-480.0,0.00013698,2]
[384433999,1757411434481,-480.0,0.00013698,2]
[384434000,1757411434491,-480.0,0.00013698,2]
[384434001,1757411434500,-480.0,0.00013698,2]
[384434002,1757411434510,-484.9431375,0.00013698,2]
[384434003,1757411434519,-480.0,0.00013698,2]
[384434004,1757411434529,-544.43,0.00013698,2]
[384434005,1757411434539,-399.03265243,0.00013698,2]
[384434006,1757411434548,-480.0,0.00013698,2]
[384434007,1757411434558,-480.0,0.00013698,2]
[384434008,1757411434567,-480.0,0.00013698,2]
[384434009,1757411434576,-480.0,0.00013698,2]
[384434010,1757411434586,-480.0,0.00013698,2]
[384434011,1757411434597,-480.0,0.00013698,2]
[384434012,1757411434607,-480.0,0.00013698,2]
[384434013,1757411434617,-480.0,0.00013698,2]
[384434014,1757411434626,-480.0,0.00013698,2]
[384434015,1757411434635,-480.0,0.00013698,2]
[384434016,1757411434644,-553.83,0.00013698,2]
[384434017,1757411434654,-480.0,0.00013698,2]
[384434018,1757411434663,-480.0,0.00013698,2]
[384434019,1757411434672,-480.0,0.00013698,2]
[384434020,1757411434682,-480.0,0.00013698,2]
[384434021,1757411434691,-480.0,0.00013698,2]
[384434022,1757411434700,-562.63,0.00013698,2]
[384434023,1757411434709,-480.0,0.00013698,2]
[384434024,1757411434718,-480.0,0.00013698,2]
[384434025,1757411434727,-480.0,0.00013698,2]
[384434026,1757411434736,-480.0,0.00013698,2]
[384434027,1757411434745,-203.51591954,0.00013698,2]
[384434028,1757411434755,-157.0,0.00013698,2]
[384434029,1757411434764,-157.0,0.00013698,2]
[384434030,1757411434773,-480.0,0.00013698,2]
[384434031,1757411434783,-500.0,0.00013698,2]
[384434032,1757411434792,-480.0,0.00013698,2]
[384434033,1757411434801,-480.0,0.00013698,2]
[384434034,1757411434811,-480.0,0.00013698,2]
[384434035,1757411434820,-480.0,0.00013698,2]
[384434036,1757411434830,-480.0,0.00013698,2]
[384434037,1757411434839,-555.12805713,0.00013698,2]
[384434038,1757411434848,-480.0,0.00013698,2]
[384434039,1757411434856,-480.0,0.00013698,2]
[384434040,1757411434865,-210.95,0.00013698,2]
[384434041,1757411434874,-480.0,0.00013698,2]
[384434042,1757411434884,-480.0,0.00013698,2]
[384434043,1757411434892,-480.0,0.00013698,2]
[384434044,1757411434901,-480.0,0.00013698,2]
[384434045,1757411434911,-480.0,0.00013698,2]
[384434046,1757411434920,-480.0,0.00013698,2]
[384434047,1757411434929,-480.0,0.00013698,2]
[384434048,1757411434938,-480.0,0.00013698,2]
[384434049,1757411434948,-1218.66,0.00013698,2]
[384434050,1757411434958,-480.0,0.00013698,2]
[384434051,1757411434969,-908.79,0.00013698,2]
[384434052,1757411434978,-1982.13,0.00013698,2]
[384434053,1757411434988,-480.0,0.00013698,2]
[384434054,1757411434999,-5145.89,0.00013698,2]
[384434055,1757411435008,-480.0,0.00013698,2]
[384434056,1757411435018,-480.0,0.00013698,2]
[384434057,1757411435027,-529.38,0.00013698,2]
[384434058,1757411435038,-480.0,0.00013698,2]
[384434059,1757411435047,-573.29,0.00013698,2]
[384434060,1757411435056,-480.0,0.00013698,2]
[384434061,1757411435065,-480.0,0.00013698,2]
[384434062,1757411435075,-1486.32,0.00013698,2]
[384434063,1757411435084,-480.0,0.00013698,2]
[384434064,1757411435094,-480.0,0.00013698,2]
[384434065,1757411435103,-721.83,0.00013698,2]
[384434066,1757411435113,-480.0,0.00013698,2]
[384434067,1757411435122,-480.0,0.00013698,2]
[384434068,1757411435132,-613.9,0.00013698,2]
[384434069,1757411435141,-480.0,0.00013698,2]
[384434070,1757411435150,-480.0,0.00013698,2]
[384434071,1757411435159,-480.0,0.00013698,2]
[384434072,1757411435169,-480.0,0.00013698,2]
[384434073,1757411435179,-480.0,0.00013698,2]
[384434074,1757411435188,-480.0,0.00013698,2]
[384434075,1757411435197,-621.36,0.00013698,2]
[384434076,1757411435206,-480.0,0.00013698,2]
[384434077,1757411435215,-480.0,0.00013698,2]
[384434078,1757411435225,-480.0,0.00013698,2]
[384434079,1757411435235,-480.0,0.00013698,2]
[384434080,1757411435244,-961.54,0.00013698,2]
[384434081,1757411435254,-2429.87,0.00013698,2]
[384434082,1757411435263,-1614.89,0.00013698,2]
[384434083,1757411435272,-480.0,0.00013698,2]
[384434084,1757411435281,-480.0,0.00013698,2]
[384434085,1757411435291,-480.0,0.00013698,2]
[384434086,1757411435299,-480.0,0.00013698,2]
[384434087,1757411435309,-500.0,0.00013698,2]
[384434088,1757411435318,-480.0,0.00013698,2]
[384434089,1757411435328,-186.0,0.00013698,2]
[384434090,1757411435337,-970.88,0.00013698,2]
[384434091,1757411435347,-480.0,0.00013698,2]
[384434092,1757411435356,-739.91,0.00013698,2]
[384434093,1757411435366,-480.0,0.00013698,2]
[384434094,1757411435375,-480.0,0.00013698,2]
[384434095,1757411435384,-480.0,0.00013698,2]
[384434096,1757411435394,-480.0,0.00013698,2]
[384434097,1757411435404,-480.0,0.00013698,2]
[384434098,1757411435415,-872.86,0.00013698,2]
[384434099,1757411435425,-480.0,0.00013698,2]
[384434100,1757411435435,-480.0,0.00013698,2]
[384434101,1757411435444,-480.0,0.00013698,2]
[384434102,1757411435454,-756.08,0.00013698,2]
[384434103,1757411435467,-288.32359427,0.00013698,2]
[384434104,1757411435477,-480.0,0.00013698,2]
[384434105,1757411435486,-480.0,0.00013698,2]
[384434106,1757411435496,-849.06,0.00013698,2]
[384434107,1757411435505,-585.34310964,0.00013698,2]
[384434108,1757411435515,-480.0,0.00013698,2]
[384434109,1757411435524,-480.0,0.00013698,2]
[384434110,1757411435534,-480.0,0.00013698,2]
[384434111,1757411435544,-480.0,0.00013698,2]
[384434112,1757411435555,-480.0,0.00013698,2]
[384434113,1757411435564,-485.80040873,0.00013698,2]
[384434114,1757411435573,-480.0,0.00013698,2]
[384434115,1757411435583,-480.0,0.00013698,2]
[384434116,1757411435593,-480.0,0.00013698,2]
[384434117,1757411435602,-929.28,0.00013698,2]
[384434118,1757411435612,-480.0,0.00013698,2]
[384434119,1757411435621,-12984.37,0.00013698,2]
[384434120,1757411435631,-480.0,0.00013698,2]
[384434121,1757411435641,-1637.95,0.00013698,2]
[384434122,1757411435650,-507.6968546,0.00013698,2]
[384434123,1757411435659,-500.0,0.00013698,2]
[384434124,1757411435668,-500.0,0.00013698,2]
[384434125,1757411435678,-500.0,0.00013698,2]
[384434126,1757411435687,-500.0,0.00013698,2]
[384434127,1757411435696,-500.0,0.00013698,2]
[384434128,1757411435706,-239.73987239,0.00013698,2]
[384434129,1757411435716,-480.0,0.00013698,2]
[384434130,1757411435726,-480.0,0.00013698,2]
[384434131,1757411435735,-480.0,0.00013698,2]
[384434132,1757411435745,-36.48535188,0.00013698,2]
[384434133,1757411435766,-443.51464812,0.00013698,2]
[384434134,1757411435775,-629.28,0.00013698,2]
[384434135,1757411435784,-2936.32,0.00013698,2]
[384434136,1757411435794,-730.12,0.00013698,2]
[384434137,1757411435803,-480.0,0.00013698,2]
[384434138,1757411435813,-480.0,0.00013698,2]
[384434139,1757411435823,-480.0,0.00013698,2]
[384434140,1757411435832,-480.0,0.00013698,2]
[384434141,1757411435841,-480.0,0.00013698,2]
[384434142,1757411435851,-480.0,0.00013698,2]
[384434143,1757411435861,-482.3521632,0.00013698,2]
[384434144,1757411435870,-717.17,0.00013698,2]
[384434145,1757411435880,-480.0,0.00013698,2]
[384434146,1757411435889,-480.0,0.00013698,2]
[384434147,1757411435899,-480.0,0.00013698,2]
[384434148,1757411435908,-480.0,0.00013698,2]
[384434149,1757411435918,-480.0,0.00013698,2]
[384434150,1757411435927,-1086.85,0.00013698,2]
[384434151,1757411435937,-480.80836924,0.00013698,2]
[384434152,1757411435948,-1302.21,0.00013698,2]
[384434153,1757411435959,-480.0,0.00013698,2]
[384434154,1757411435968,-480.0,0.00013698,2]
[384434155,1757411435977,-870.82,0.00013698,2]
[384434156,1757411435986,-480.0,0.00013698,2]
[384434157,1757411435996,-480.0,0.00013698,2]
[384434158,1757411436006,-480.0,0.00013698,2]
[384434159,1757411436015,-480.0,0.00013698,2]
[384434160,1757411436025,-1255.46,0.00013698,2]
[384434161,1757411436035,-480.0,0.00013698,2]
[384434162,1757411436044,-1538.93,0.00013698,2]
[384434163,1757411436053,-4465.45,0.00013698,2]
[384434164,1757411436062,-480.0,0.00013698,2]
[384434165,1757411436072,-480.0,0.00013698,2]
[384434166,1757411436081,-480.0,0.00013698,2]
[384434167,1757411436090,-480.0,0.00013698,2]
[384434168,1757411436100,-480.0,0.00013698,2]
[384434169,1757411436109,-480.0,0.00013698,2]
[384434170,1757411436119,-480.0,0.00013698,2]
[384434171,1757411436128,-480.0,0.00013698,2]
[384434172,1757411436137,-480.0,0.00013698,2]
[384434173,1757411436146,-480.0,0.00013698,2]
[384434174,1757411436155,-480.0,0.00013698,2]
[384434175,1757411436165,-4507.34,0.00013698,2]
[384434176,1757411436174,-480.0,0.00013698,2]
[384434177,1757411436184,-480.0,0.00013698,2]
[384434178,1757411436193,-480.0,0.00013698,2]
[384434179,1757411436203,-480.0,0.00013698,2]
[384434180,1757411436212,-480.0,0.00013698,2]
[384434181,1757411436222,-480.0,0.00013698,2]
[384434182,1757411436231,-480.0,0.00013698,2]
[384434183,1757411436241,-480.0,0.00013698,2]
[384434184,1757411436250,-922.79,0.00013698,2]
[384434185,1757411436260,-480.0,0.00013698,2]
[384434186,1757411436269,-480.0,0.00013698,2]
[384434187,1757411436279,-480.0,0.00013698,2]
[384434188,1757411436288,-4027.0,0.00013698,2]
[384434189,1757411436298,-480.0,0.00013698,2]